bitfinex-derivatives/quotes_ETHF0:USTF0_20250416
["timestamp","ask_amount","ask_price","bid_price","bid_amount"]
[1744832768743,1.7235,1565.5,1565.4,8.964324]
[1744832768945,3.00089,1565.5,1565.4,8.96430562]
[1744832769152,1.27739,1565.5,1565.4,14.15830562]
[1744832769352,3.00089,1565.5,1565.4,5.66080306]
[1744832769653,1.7235,1565.5,1565.4,5.66080306]
[1744832769853,1.7235,1565.5,1565.4,7.28190306]
[1744832770050,0.00957885,1565.6,1565.4,7.28190306]
[1744832770255,0.00957885,1565.6,1565.5,5.29570306]
[1744832770555,0.00957885,1565.6,1565.5,6.16630306]
[1744832770750,0.00957885,1565.6,1565.5,5.6995]
[1744832770955,2.98458885,1565.6,1565.5,6.16599746]
[1744832771156,2.98458885,1565.6,1565.5,3.67429746]
[1744832771657,2.98458885,1565.6,1565.5,5.29539746]
[1744832771848,2.98458885,1565.6,1565.5,3.2078]
[1744832773164,1.27747,1565.4,1565.3,0.00957885]
[1744832773757,2.91177,1565.4,1565.3,0.47586384]
[1744832773957,1.6343,1565.4,1565.3,1.7534132]
[1744832774162,1.6343,1565.4,1565.3,3.21737885]
[1744832774163,2.91177,1565.4,1565.3,3.21737885]
[1744832774461,0.8827,1565.5,1565.3,5.46701269]
[1744832774667,3.79442,1565.5,1565.4,1.7834]
[1744832774965,2.91172,1565.5,1565.4,1.7834]
[1744832775166,2.91169,1565.5,1565.4,1.7834]
[1744832775569,1.27739,1565.5,1565.4,2.24948814]
[1744832775868,0.00957885,1565.6,1565.5,1.27739]
[1744832776070,1.28688885,1565.6,1565.5,7.11637518]
[1744832777065,1.28688885,1565.6,1565.5,3.2078]
[1744832777369,1.27747,1565.4,1565.3,10.95337885]
[1744832777563,1.27747,1565.4,1565.3,11.41934077]
[1744832777764,0.00957885,1565.6,1565.3,16.41934077]
[1744832777965,1.28688885,1565.6,1565.5,3.2078]
[1744832778165,1.28688885,1565.6,1565.5,4.9152]
[1744832778362,3.04178885,1565.6,1565.5,4.9152]
[1744832779061,3.04178885,1565.6,1565.5,5.38107344]
[1744832779269,3.04178885,1565.6,1565.5,4.9152]
[1744832780769,1.76447885,1565.6,1565.5,6.19259]
[1744832780968,3.19226,1566.1,1565.7,1.27716]
[1744832781269,3.19205,1566.3,1565.9,4.48479]
[1744832781470,0.52746029,1566.5,1566.2,3.2078]
[1744832781775,3.2781,1566.8,1566.4,3.2078]
[1744832782071,1.27657,1566.5,1566.4,45.80657885]
[1744832782459,1.27657,1566.5,1566.4,46.27201153]
[1744832782662,1.6131,1566.7,1566.4,45.80657885]
[1744832782873,1.27655,1566.6,1566.5,1.7892]
[1744832783073,1.6131,1566.7,1566.5,1.7892]
[1744832783276,1.2763,1566.9,1566.7,1.27639]
[1744832783475,1.2763,1566.9,1566.8,1.7892]
[1744832783663,1.27641,1566.7,1566.6,9.2576]
[1744832784163,0.825,1567.1,1566.7,1.27638]
[1744832784371,1.27611,1567.1,1566.8,7.15867]
[1744832784570,1.27611,1567.1,1566.9,1.6885]
[1744832784765,1.27611,1567.1,1566.9,2.96475]
[1744832784968,1.27611,1567.1,1566.9,6.8735]
[1744832785170,1.27611,1567.1,1567.0,1.6885]
[1744832785470,1.27617,1567.0,1566.9,5.185]
[1744832785666,1.27617,1567.0,1566.8,3.2078]
[1744832785667,4.80495,1567.2,1566.7,6.8735]
[1744832785872,1.27633,1566.8,1566.7,5.185]
[1744832786069,1.27641,1566.7,1566.6,3.19436395]
[1744832786665,2.89131,1566.7,1566.6,3.19436395]
[1744832787267,1.27649,1566.6,1566.5,5.185]
[1744832787461,1.27649,1566.6,1566.4,44.01737885]
[1744832787462,1.27657,1566.5,1566.4,0.00957885]
[1744832787967,3.77347,1566.6,1566.4,0.00957885]
[1744832788267,2.95777,1566.5,1566.4,0.00957885]
[1744832788868,2.95777,1566.5,1566.4,3.21737885]
[1744832789066,1.6812,1566.5,1566.4,4.91527885]
[1744832789274,2.95777,1566.5,1566.4,4.91527885]
[1744832789471,2.95777,1566.5,1566.4,1.70747885]
[1744832790376,2.95777,1566.5,1566.4,0.00957885]
[1744832790572,2.95777,1566.5,1566.4,1.70747885]
[1744832791474,2.95777,1566.5,1566.4,0.00957885]
[1744832791680,7.95777,1566.5,1566.4,0.00957885]
[1744832791978,1.27682,1566.2,1566.1,5.183]
[1744832792169,1.2769,1566.1,1566.0,3.2078]
[1744832792371,1.27688,1566.2,1566.0,45.7677]
[1744832792879,1.2769,1566.1,1566.0,44.0078]
[1744832794775,0.00957885,1566.3,1566.0,44.0078]
[1744832794970,1.28634885,1566.3,1566.2,3.2078]
[1744832795374,1.28631885,1566.3,1566.2,3.2078]
[1744832795581,1.2769,1566.1,1566.0,44.0078]
[1744832796983,1.2769,1566.1,1566.0,40.8]
[1744832797584,1.2769,1566.1,1566.0,44.0078]
[1744832799379,1.2769,1566.1,1566.0,3.2078]
[1744832800875,1.2769,1566.1,1565.9,6.08457885]
[1744832801077,3.05948,1566.0,1565.9,6.08457885]
[1744832801891,3.05948,1566.0,1565.9,7.36163885]
[1744832802191,3.20142885,1566.3,1565.9,6.08457885]
[1744832802393,1.27693,1566.1,1566.0,3.2078]
[1744832802786,1.27698,1566.0,1565.9,6.08457885]
[1744832803488,1.27698,1566.0,1565.9,0.00957885]
[1744832805083,3.05304,1566.1,1565.9,0.00957885]
[1744832805400,3.05305,1566.1,1566.0,3.2078]
[1744832806892,1.27698,1566.0,1565.9,0.00957885]
[1744832807090,3.81168,1566.0,1565.9,0.00957885]
[1744832808678,0.00957885,1566.3,1566.0,1.27693]
[1744832808891,1.27689,1566.2,1566.1,4.9171]
[1744832809491,2.96275885,1566.3,1566.2,1.27682]
[1744832809681,2.96271885,1566.3,1566.2,1.6629]
[1744832810283,1.27682,1566.2,1566.1,4.0757]
[1744832810495,2.95002,1566.2,1566.1,2.9967593]
[1744832810692,2.95002,1566.2,1566.1,7.4814593]
[1744832810993,2.95002,1566.2,1566.1,6.2045593]
[1744832811297,2.95002,1566.2,1566.1,6.20469103]
[1744832811486,2.95002,1566.2,1566.1,2.99689103]
[1744832811791,2.95002,1566.2,1566.1,1.33399103]
[1744832811992,2.95002,1566.2,1566.1,4.54179103]
[1744832812184,2.95002,1566.2,1566.1,6.15429103]
[1744832813092,2.95002,1566.2,1566.1,5.6882]
[1744832813388,1.27698,1566.0,1565.9,0.00957885]
[1744832813589,1.27698,1566.0,1565.9,2.08838171]
[1744832813785,1.27698,1566.0,1565.9,0.00957885]
[1744832813986,2.13708,1566.0,1565.9,0.00957885]
[1744832815185,2.13708,1566.0,1565.9,2.12945881]
[1744832815788,2.13708,1566.0,1565.9,0.47635881]
[1744832817491,2.13708,1566.0,1565.9,2.12945881]
[1744832818090,2.13708,1566.0,1565.9,0.47635881]
[1744832818493,1.6193,1566.1,1565.9,3.68415881]
[1744832818789,1.27698,1566.0,1565.9,4.88887885]
[1744832818989,1.27698,1566.0,1565.9,5.35607192]
[1744832819900,0.83907885,1566.3,1565.9,18.72369192]
[1744832820095,0.00957885,1566.3,1566.2,4.48462]
[1744832820397,0.00957885,1566.3,1566.2,10.12681307]
[1744832820594,0.00957885,1566.3,1566.2,5.64219307]
[1744832820894,1.28631885,1566.3,1566.2,10.52149307]
[1744832821095,0.00957885,1566.3,1566.2,11.79831307]
[1744832821399,0.00957885,1566.3,1566.2,13.49081307]
[1744832822999,1.28631885,1566.3,1566.2,13.49081307]
[1744832823200,0.00957885,1566.3,1566.2,13.49081307]
[1744832823596,0.00957885,1566.3,1566.2,13.49065433]
[1744832824499,8.85e-06,1566.3,1566.2,21.68501828]
[1744832824703,1.6682,1566.9,1566.4,3.19156]
[1744832824900,1.27633,1566.8,1566.7,4.48417]
[1744832825101,1.27624,1567.0,1566.8,1.27633]
[1744832825304,1.27617,1567.0,1566.9,3.67416659]
[1744832825502,1.27617,1567.0,1566.9,0.46636659]
[1744832825696,1.27625,1566.9,1566.8,46.6284428]
[1744832825896,1.27625,1566.9,1566.8,43.90047653]
[1744832826097,3.19114,1566.7,1566.3,5.174]
[1744832826401,1.27665,1566.4,1566.3,6.45074]
[1744832826599,1.27665,1566.4,1566.3,48.18063863]
[1744832826799,1.27665,1566.4,1566.3,0.46633863]
[1744832826995,1.27674,1566.3,1566.2,3.2078]
[1744832827396,1.27674,1566.3,1566.1,0.00957885]
[1744832827397,1.27682,1566.2,1566.1,0.00957885]
[1744832827597,3.85522,1566.2,1566.1,0.00957885]
[1744832827995,8.85522,1566.2,1566.1,0.00957885]
[1744832828294,3.85522,1566.2,1566.1,0.00957885]
[1744832830314,8.85522,1566.2,1566.1,0.00957885]
[1744832830606,2.5784,1566.2,1566.1,0.00957885]
[1744832830904,3.85522,1566.2,1566.1,3.21737885]
[1744832831105,1.7446,1566.2,1566.1,3.68383491]
[1744832831310,3.02142,1566.2,1566.1,5.32873491]
[1744832831503,1.2768,1566.3,1566.1,5.32873491]
[1744832831699,0.8592,1566.4,1566.2,2.11134332]
[1744832831899,1.7172,1566.5,1566.3,6.59586647]
[1744832832100,2.99383,1566.5,1566.4,2.11130891]
[1744832832407,2.99383,1566.5,1566.4,1.6449]
[1744832834401,1.27665,1566.4,1566.3,3.2078]
[1744832834601,3.06695,1566.4,1566.3,3.67413302]
[1744832835102,1.7903,1566.6,1566.4,1.27665]
[1744832835302,1.27657,1566.5,1566.4,1.6373]
[1744832835510,1.7903,1566.6,1566.4,2.96647136]
[1744832835708,1.27649,1566.6,1566.5,0.46627136]
[1744832836013,1.27649,1566.6,1566.5,2.10357136]
[1744832836212,3.06679,1566.6,1566.5,1.6373]
[1744832837606,1.27665,1566.4,1566.3,6.40216395]
[1744832837906,1.27665,1566.4,1566.3,3.67408448]
[1744832838114,1.27682,1566.2,1566.1,0.00957885]
[1744832838307,1.27682,1566.2,1566.1,0.47597359]
[1744832838508,1.27682,1566.2,1566.1,0.00957885]
[1744832838705,2.96232,1566.2,1566.1,0.00957885]
[1744832839810,1.27682,1566.2,1566.1,5.43727728]
[1744832840005,0.8732,1566.3,1566.1,5.43725016]
[1744832840212,5.99,1566.8,1566.2,5.41188131]
[1744832840411,9.16672,1567.2,1566.4,3.2078]
[1744832840609,2.91071,1566.9,1566.7,4.48421]
[1744832840904,2.91071,1566.9,1566.8,1.7535]
[1744832841315,1.6344,1566.9,1566.8,1.7535]
[1744832841515,0.83807,1567.0,1566.8,2.21956474]
[1744832841707,1.27625,1566.9,1566.8,1.7535]
[1744832842106,0.00957,1567.0,1566.9,1.27625]
[1744832842316,1.28574,1567.0,1566.9,10.1263]
[1744832842512,1.28574,1567.0,1566.9,11.86853035]
[1744832842716,0.00957,1567.0,1566.9,11.86853035]
[1744832843016,1.28574,1567.0,1566.9,12.76053035]
[1744832843217,0.00957,1567.0,1566.9,12.76053035]
[1744832843724,1.28574,1567.0,1566.9,11.4837156]
[1744832843911,0.00957,1567.0,1566.9,12.7599656]
[1744832845315,0.00957,1567.0,1566.9,53.5599656]
[1744832845510,0.00957,1567.0,1566.9,53.55966699]
[1744832846117,0.00957,1567.0,1566.9,58.55966699]
[1744832846310,1.6358,1567.4,1566.9,57.28341699]
[1744832846516,2.5249,1567.4,1567.1,3.2078]
[1744832846711,1.27598,1567.3,1567.2,6.8641]
[1744832847017,1.276,1567.2,1567.1,3.2078]
[1744832848716,1.27608,1567.1,1567.0,0.00957885]
[1744832848906,3.19072,1566.9,1566.5,5.163]
[1744832849111,1.6699,1566.8,1566.5,5.163]
[1744832849308,1.27641,1566.7,1566.6,40.8]
[1744832849713,1.6699,1566.8,1566.6,44.0078]
[1744832849911,1.27641,1566.7,1566.6,44.0078]
[1744832850217,1.27641,1566.7,1566.6,40.8]
[1744832850415,0.00957885,1566.9,1566.6,50.7517]
[1744832850720,0.00957885,1566.9,1566.8,4.48413]
[1744832850912,0.00957885,1566.9,1566.8,12.68429122]
[1744832851113,0.00957885,1566.9,1566.8,16.40796122]
[1744832851314,0.00957885,1566.9,1566.8,12.68430634]
[1744832851622,0.00957885,1566.9,1566.8,12.21913]
[1744832852115,0.00957885,1566.9,1566.8,10.9428]
[1744832852312,1.28582885,1566.9,1566.8,8.3708]
[1744832852711,2.16102885,1566.9,1566.8,5.163]
[1744832853216,1.27641,1566.7,1566.6,44.86346395]
[1744832853415,1.27641,1566.7,1566.6,40.8]
[1744832853609,1.27649,1566.6,1566.5,10.12847885]
[1744832853810,3.01079,1566.6,1566.5,6.92067885]
[1744832854322,1.27644,1566.7,1566.5,11.87015894]
[1744832854522,1.27649,1566.6,1566.5,8.38037885]
[1744832854813,1.27649,1566.6,1566.5,10.62953184]
[1744832855008,1.7343,1566.8,1566.5,11.44094885]
[1744832855212,1.7343,1566.8,1566.6,1.27646]
[1744832855418,3.01063,1566.8,1566.7,1.784]
[1744832855820,0.00957885,1566.9,1566.8,1.27633]
[1744832856019,0.00957885,1566.9,1566.8,9.90613]
[1744832856219,0.00957885,1566.9,1566.8,10.37118409]
[1744832856414,0.00957885,1566.9,1566.8,10.3711752]
[1744832859121,1.28582885,1566.9,1566.8,9.0948452]
[1744832859321,1.28582885,1566.9,1566.8,8.6298]
[1744832859627,1.28582885,1566.9,1566.8,5.163]
[1744832860024,2.95452885,1566.9,1566.8,5.163]
[1744832861825,1.27633,1566.8,1566.7,3.2078]
[1744832862023,2.96833,1566.8,1566.7,3.2078]
[1744832862319,2.96833,1566.8,1566.6,5.162]
[1744832862320,3.19146,1566.5,1566.1,11.56416395]
[1744832862513,1.2769,1566.1,1566.0,6.50176395]
[1744832862718,1.2769,1566.1,1566.0,0.46594917]
[1744832862918,1.692,1566.3,1566.0,1.74288917]
[1744832863225,1.692,1566.3,1566.0,42.4209]
[1744832863419,1.2769,1566.1,1566.0,42.43047885]
[1744832863726,1.692,1566.3,1566.0,43.70742885]
[1744832863925,1.27682,1566.2,1566.1,1.6767]
[1744832864319,1.2769,1566.1,1566.0,40.80957885]
[1744832864625,2.929,1566.1,1566.0,40.80957885]
[1744832865626,2.929,1566.1,1566.0,0.00957885]
[1744832867225,1.2769,1566.1,1566.0,0.00957885]
[1744832867425,1.2769,1566.1,1566.0,1.71517885]
[1744832867627,1.2769,1566.1,1566.0,0.00957885]
[1744832869333,1.27714,1565.8,1565.7,3.2078]
[1744832869633,1.2771,1565.9,1565.7,4.48503]
[1744832869928,1.7635,1565.8,1565.7,6.20653]
[1744832870129,3.04064,1565.8,1565.7,4.9293]
[1744832870524,0.00957885,1565.9,1565.7,4.9293]
[1744832870735,0.00957885,1565.9,1565.8,2.99864]
[1744832870935,0.00957885,1565.9,1565.8,8.15364]
[1744832871127,0.00957885,1565.9,1565.8,16.81263655]
[1744832871329,1.27668,1566.4,1565.8,15.53549655]
[1744832871526,1.27668,1566.4,1566.3,3.2078]
[1744832871727,1.27674,1566.3,1566.2,45.955]
[1744832872027,3.04024,1566.3,1566.2,45.955]
[1744832872227,3.04024,1566.3,1566.2,40.8]
[1744832872633,1.2769,1566.1,1566.0,8.3628]
[1744832872828,1.27698,1566.0,1565.9,2.4862]
[1744832873230,1.27706,1565.9,1565.8,9.1736]
[1744832873429,1.27706,1565.9,1565.8,3.2078]
[1744832873627,6.27706,1565.9,1565.8,3.2078]
[1744832873826,6.27706,1565.9,1565.6,5.16557885]
[1744832873827,1.27723,1565.7,1565.6,0.00957885]
[1744832874429,2.98483,1565.7,1565.6,0.00957885]
[1744832875941,2.98483,1565.7,1565.6,1.28688885]
[1744832875942,1.7076,1565.7,1565.6,1.28688885]
[1744832876241,1.7076,1565.7,1565.6,6.27938885]
[1744832876541,2.98483,1565.7,1565.6,6.27938885]
[1744832876834,2.98483,1565.7,1565.6,5.00207885]
[1744832877034,1.27723,1565.7,1565.6,5.00207885]
[1744832877228,4.9047,1567.1,1565.6,14.66064428]
[1744832877430,0.8691,1566.6,1566.3,3.2078]
[1744832877633,0.8691,1566.6,1566.3,4.48454]
[1744832877936,1.6969,1566.5,1566.3,4.48454]
[1744832878137,2.9735,1566.5,1566.3,4.9925]
[1744832878431,1.6969,1566.5,1566.3,6.26924]
[1744832879738,2.97351,1566.5,1566.3,6.26924]
[1744832880340,1.28622885,1566.4,1566.3,4.9925]
[1744832880535,3.07382885,1566.4,1566.3,3.2078]
[1744832881131,1.79717885,1566.4,1566.3,4.48454]
[1744832881328,0.00957885,1566.4,1566.3,4.48454]
[1744832881541,0.00957885,1566.4,1566.3,6.25214]
[1744832882643,0.00957885,1566.4,1566.3,11.40814]
[1744832883241,3.2078,1566.7,1566.3,3.2078]
[1744832883443,1.7751,1567.5,1566.8,3.19065]
[1744832883637,1.7751,1567.4,1567.3,4.48372]
[1744832883844,0.8745,1567.6,1567.5,1.27576]
[1744832884046,2.15018,1567.6,1567.5,3.2078]
[1744832884242,1.27592,1567.3,1567.2,8.3638]
[1744832884449,1.27592,1567.3,1567.2,3.2078]
[1744832884946,1.276,1567.2,1567.1,40.80957885]
[1744832885144,2.9532,1567.2,1567.1,40.80957885]
[1744832885345,2.9532,1567.2,1567.1,0.00957885]
[1744832885545,1.6772,1567.2,1567.1,1.28565885]
[1744832885946,1.6772,1567.2,1567.1,0.00957885]
[1744832886451,1.27577,1567.5,1567.2,1.27593]
[1744832886648,2.95302,1567.5,1567.3,4.8662]
[1744832886844,1.27584,1567.4,1567.3,3.2078]
[1744832887147,2.95304,1567.4,1567.3,3.2078]
[1744832887951,1.6772,1567.4,1567.3,4.48372]
[1744832888150,2.95304,1567.4,1567.3,4.9397]
[1744832888351,2.95304,1567.4,1567.3,3.2078]
[1744832888961,0.8745,1567.6,1567.3,4.48372]
[1744832889262,3.8975,1567.6,1567.5,3.2078]
[1744832889857,0.00957885,1567.7,1567.6,1.27568]
[1744832890055,0.00957885,1567.7,1567.6,11.35594395]
[1744832890255,0.00957885,1567.7,1567.6,12.20664395]
[1744832890759,1.27568,1567.6,1567.5,3.2078]
[1744832890955,3.02298,1567.6,1567.5,3.2078]
[1744832891157,3.1878,1568.3,1567.8,1.27547]
[1744832891460,1.7565,1568.0,1567.8,1.27545]
[1744832891760,1.7565,1568.0,1567.9,45.6703]
[1744832891956,3.18737,1568.5,1567.9,45.6703]
[1744832892165,1.27527,1568.1,1568.0,3.21737885]
[1744832892360,1.27527,1568.1,1568.0,4.87987885]
[1744832892561,1.27527,1568.1,1568.0,9.87987885]
[1744832892761,1.27523,1568.2,1568.0,11.15520885]
[1744832894259,1.27527,1568.1,1568.0,0.00957885]
[1744832894460,2.94547,1568.1,1568.0,0.00957885]
[1744832894963,3.78847,1568.1,1568.0,0.00957885]
[1744832895164,3.78847,1568.1,1568.0,8.85e-06]
[1744832895165,11.99627,1568.1,1568.0,8.85e-06]
[1744832895572,8.78847,1568.1,1568.0,8.85e-06]
[1744832896253,19.99711429,1568.1,1567.4,3.2078]
[1744832896460,1.27576,1567.5,1567.4,3.2078]
[1744832897059,3.2078,1567.7,1567.1,3.2078]
[1744832897265,0.51291892,1568.5,1567.1,3.2078]
[1744832897266,3.18743,1568.5,1567.9,1.27542]
[1744832897465,3.18743,1568.5,1568.2,3.2078]
[1744832897466,1.27511,1568.3,1568.2,3.2078]
[1744832897663,1.7681,1568.4,1568.2,3.2078]
[1744832897866,1.7681,1568.4,1568.3,1.6635]
[1744832898270,3.04313,1568.4,1568.3,1.6635]
[1744832899472,1.7681,1568.4,1568.3,1.6635]
[1744832899661,3.04313,1568.4,1568.3,1.6635]
[1744832899858,1.27511,1568.3,1568.2,44.01737885]
[1744832900062,3.04321,1568.3,1568.2,3.21737885]
[1744832900267,3.88201,1568.3,1568.2,3.21737885]
[1744832902659,8.88201,1568.3,1568.2,3.21737885]
[1744832903972,3.88201,1568.3,1568.2,3.21737885]
[1744832905966,3.18697,1568.7,1568.2,3.21737885]
[1744832905967,1.27508,1568.4,1568.2,9.49250885]
[1744832906167,1.27508,1568.4,1568.3,1.6619]
[1744832907375,1.27511,1568.3,1568.2,3.21737885]
[1744832907675,1.27511,1568.3,1568.2,4.86917885]
[1744832909975,1.6236,1568.5,1568.4,1.27503]
[1744832910171,5.99,1568.8,1568.4,3.2078]
[1744832910372,1.27488,1568.6,1568.5,1.6359]
[1744832910572,1.27488,1568.6,1568.5,4.8437]
[1744832911971,1.27488,1568.6,1568.5,3.2078]
[1744832912678,2.93048,1568.6,1568.5,3.2078]
[1744832912880,8.78808,1568.6,1568.5,1.88769161]
[1744832913978,3.78808,1568.6,1568.5,0.59087161]
[1744832914576,1.27511,1568.3,1568.2,3.21737885]
[1744832914778,1.27527,1568.1,1568.0,3.2078]
[1744832915476,1.27524,1568.2,1568.0,6.18403]
[1744832915682,1.27524,1568.2,1568.1,1.7009]
[1744832917984,1.27524,1568.2,1568.1,2.1658104]
[1744832918284,0.00957885,1568.4,1568.2,1.27517]
[1744832918479,0.00957885,1568.4,1568.3,4.48291]
[1744832918674,1.28460885,1568.4,1568.3,3.2078]
[1744832918874,0.00957885,1568.4,1568.3,11.70086094]
[1744832919076,0.00957885,1568.4,1568.3,6.70086094]
[1744832919372,0.00957885,1568.4,1568.3,6.70110638]
[1744832919583,0.00957885,1568.4,1568.3,11.70110638]
[1744832920081,6.51326332,1569.1,1568.4,3.1875]
[1744832920282,1.27454,1569.0,1568.9,3.2078]
[1744832920883,1.7437,1569.2,1569.1,1.27446]
[1744832921087,3.18514,1569.6,1569.1,8.8161757]
[1744832921385,1.27421,1569.4,1569.3,3.2078]
[1744832922280,1.27438,1569.2,1569.1,3.2078]
[1744832923186,1.27411,1569.6,1569.3,1.27426]
[1744832923382,1.27405,1569.6,1569.5,3.2078]
[1744832923680,18.88790462,1570.2,1569.5,3.67042893]
[1744832923888,18.88790462,1570.2,1569.4,96.50359395]
[1744832923889,1.27365,1570.1,1570.0,3.2078]
[1744832924084,1.27373,1570.0,1569.9,0.00957885]
[1744832924392,3.05553,1570.0,1569.9,0.00957885]
[1744832924887,3.05553,1570.0,1569.9,1.63917885]
[1744832926485,0.50601195,1570.3,1569.9,0.00957885]
[1744832926788,1.27357,1570.2,1569.9,1.63917885]
[1744832926976,1.27357,1570.2,1570.1,3.2078]
[1744832927682,1.27357,1570.2,1570.1,4.8599]
[1744832928291,6.135,1570.7,1570.1,16.4095]
[1744832928292,0.858,1570.7,1570.1,16.4095]
[1744832928491,6.39,1571.1,1570.4,3.2078]
[1744832928790,1.27316,1570.7,1570.6,3.2078]
[1744832930292,6.98133674,1571.1,1570.6,8.2078]
[1744832930293,0.513136,1571.1,1570.6,8.2078]
[1744832930490,1.6719,1571.2,1571.0,3.2078]
[1744832930688,1.27284,1571.1,1571.0,4.9414]
[1744832931691,1.27284,1571.1,1571.0,3.2078]
[1744832931879,1.6719,1571.2,1571.0,3.2078]
[1744832932082,1.27284,1571.1,1571.0,3.2078]
[1744832934986,1.273,1570.9,1570.8,44.0078]
[1744832935190,3.18217,1571.1,1570.7,1.7593]
[1744832935191,1.27308,1570.8,1570.7,1.7593]
[1744832935392,3.00698,1570.8,1570.7,4.95781793]
[1744832935693,3.00698,1570.8,1570.7,45.75781793]
[1744832935991,3.00698,1570.8,1570.7,4.95781793]
[1744832938288,0.02277,1571.9,1571.1,3.18198]
[1744832938485,0.01348793,1571.9,1571.6,3.2078]
[1744832938790,6.38652,1572.8,1571.8,6.38843]
[1744832938995,4.93478,1572.6,1572.1,0.00954715]
[1744832939189,3.17926,1572.5,1572.1,0.00954715]
[1744832939387,1.27195,1572.2,1572.1,0.00954715]
[1744832940388,1.7556,1572.4,1572.1,3.21734715]
[1744832940582,3.2078,1572.9,1572.4,1.27178]
[1744832940787,1.7437,1572.9,1572.5,3.2078]
[1744832941491,1.27162,1572.6,1572.5,3.2078]
[1744832941686,1.7437,1572.9,1572.5,3.2078]
[1744832941887,4.8724,1573.4,1572.7,3.2078]
[1744832942189,1.7437,1573.1,1573.0,3.2078]
[1744832942593,1.27108,1573.3,1573.0,3.2078]
[1744832942900,1.27098,1573.4,1573.2,3.2078]
[1744832943291,1.27101,1573.4,1573.2,3.2078]
[1744832943491,1.27093,1573.5,1573.2,8.2078]
[1744832943691,1.27089,1573.5,1573.4,3.2078]
[1744832944204,21.19059598,1573.8,1573.4,13.4768]
[1744832944398,21.19059598,1573.8,1573.7,4.47853]
[1744832944602,15.1465099,1573.8,1573.7,50.91753]
[1744832944893,15.1465099,1573.8,1573.7,55.91753]
[1744832945101,15.1465099,1573.8,1573.7,54.6468]
[1744832945294,16.4171599,1573.8,1573.7,44.0078]
[1744832945500,1.27081,1573.6,1573.5,3.2078]
[1744832945897,1.27081,1573.6,1573.5,44.0078]
[1744832946402,3.17727,1573.5,1572.9,0.81784715]
[1744832946701,1.2713,1573.0,1572.9,0.00954715]
[1744832947599,5.0,1573.0,1572.4,3.2078]
[1744832947898,1.27166,1572.6,1572.4,3.2078]
[1744832948294,1.7507,1572.9,1572.4,44.0078]
[1744832948496,1.27154,1572.7,1572.6,3.2078]
[1744832948897,1.27162,1572.6,1572.5,1.63334715]
[1744832949094,1.6472,1572.7,1572.5,1.63334715]
[1744832949300,2.91876,1572.7,1572.5,1.63334715]
[1744832949497,1.6472,1572.7,1572.5,1.63334715]
[1744832949700,1.27162,1572.6,1572.5,1.63334715]
[1744832950098,1.6472,1572.7,1572.5,1.63334715]
[1744832950399,0.11067945,1573.8,1573.1,3.2078]
[1744832950597,1.6472,1574.3,1573.8,1.27065]
[1744832950790,1.6472,1574.3,1573.8,5.635]
[1744832950992,1.6472,1574.3,1574.2,1.27033]
[1744832950993,0.50115476,1574.3,1574.2,1.27033]
[1744832951191,3.2078,1574.7,1574.1,8.8418]
[1744832951192,8.02983,1574.7,1574.1,8.8418]
[1744832951394,1.27033,1574.2,1574.1,5.64354715]
[1744832951594,1.27033,1574.2,1574.1,2.46341155]
[1744832951801,0.50294899,1574.3,1574.1,5.67121155]
[1744832952002,1.27025,1574.3,1574.2,1.6682]
[1744832952697,1.27033,1574.2,1574.1,0.00954715]
[1744832952991,9.9276,1574.3,1574.1,0.00954715]
[1744832952992,0.51930214,1574.3,1574.1,5.00000715]
[1744832953196,23.08794753,1574.4,1574.1,3.20780715]
[1744832953503,23.08794753,1574.4,1574.2,1.6682]
[1744832953705,24.35814753,1574.4,1574.2,1.6682]
[1744832954106,23.08794753,1574.4,1574.3,10.11005]
[1744832954302,28.17636185,1575.0,1574.4,1.27017]
[1744832954605,12.20385185,1575.0,1574.9,3.2078]
[1744832954903,29.38466049,1575.5,1575.4,1.26936]
[1744832955102,35.73506035,1575.5,1575.0,0.827]
[1744832955306,1.26952,1575.2,1575.1,42.54834715]
[1744832955602,1.26952,1575.2,1575.1,40.80954715]
[1744832955807,7.61991986,1575.2,1575.1,40.80954715]
[1744832956106,9.37901986,1575.2,1575.1,0.00954715]
[1744832956303,6.35039986,1575.2,1575.1,0.00954715]
[1744832956507,29.38466049,1575.5,1575.2,1.26947]
[1744832956801,1.26952,1575.2,1575.1,0.00954715]
[1744832957006,4.47732,1575.2,1575.1,0.00954715]
[1744832957195,1.7591,1575.4,1575.1,3.21734715]
[1744832957503,0.11050233,1576.1,1575.8,1.26897]
[1744832957698,3.2078,1576.5,1576.0,3.2078]
[1744832958095,3.2078,1577.1,1576.4,3.2078]
[1744832958300,1.26827,1576.8,1576.5,1.6989]
[1744832958502,12.52138,1576.9,1576.1,44.01731535]
[1744832958695,1.26872,1576.2,1576.1,1.70841535]
[1744832958894,1.26872,1576.2,1576.1,0.00951535]
[1744832959306,8.17184,1576.2,1575.6,3.2078]
[1744832959509,1.26904,1575.8,1575.6,4.9067]
[1744832959700,1.26904,1575.8,1575.7,42.4989]
[1744832960097,1.26912,1575.7,1575.6,3.2078]
[1744832960297,1.27849937,1575.8,1575.6,3.2078]
[1744832960605,1.27849937,1575.8,1575.5,1.70841535]
[1744832960606,1.2692,1575.6,1575.5,0.00951535]
[1744832961101,5.0,1575.6,1575.0,3.2078]
[1744832961311,1.26948,1575.3,1575.0,4.8517]
[1744832961507,1.26931,1575.5,1575.2,3.2078]
[1744832961707,1.26936,1575.4,1575.3,1.6439]
[1744832962108,3.2078,1575.6,1575.2,3.21731535]
[1744832962405,1.26941,1575.4,1575.2,0.00951535]
[1744832962612,1.7152,1575.5,1575.2,0.00951535]
[1744832962911,1.26934,1575.5,1575.2,1.65341535]
[1744832963107,1.26944,1575.3,1575.2,0.00951535]
[1744832963302,2.98461,1575.4,1575.2,0.00951535]
[1744832963503,0.00940937,1575.8,1575.2,1.27898535]
[1744832963704,1.7152,1575.6,1575.2,1.65341535]
[1744832963915,1.7152,1575.6,1575.2,0.00951535]